bitfinex/quotes_ETHUSD_20260313
["timestamp","ask_amount","ask_price","bid_price","bid_amount"]
[1773381039023,1.01121295,2109.4,2108.7,1.06811154]
[1773381039619,1.01121295,2109.4,2108.8,1.06701154]
[1773381039820,0.001,2109.5,2109.1,1.06701154]
[1773381040138,1.01221295,2109.5,2109.1,1.06701154]
[1773381040631,1.01221295,2109.5,2108.9,1.06701154]
[1773381040938,1.01221295,2109.5,2109.0,1.06701154]
[1773381041936,0.001,2109.5,2109.2,1.06701154]
[1773381042235,0.001,2109.5,2109.2,3.09101154]
[1773381042440,1.01221295,2109.5,2109.2,3.09101154]
[1773381043318,1.01221295,2109.5,2109.2,2.024]
[1773381043522,1.01221295,2109.5,2109.0,2.025]
[1773381044240,1.18517113,2109.4,2109.0,3.09455382]
[1773381044416,2.18996223,2109.5,2109.1,1.06955382]
[1773381045837,1.18615595,2109.5,2109.0,2.025]
[1773381046149,1.00380628,2109.4,2109.0,2.025]
[1773381046439,2.1890336,2109.3,2109.0,2.025]
[1773381049843,2.1890336,2109.3,2109.0,2.0261]
[1773381050038,2.1900336,2109.3,2109.0,2.0261]
[1773381050620,1.07140436,2109.2,2109.0,2.0261]
[1773381051939,2.25674005,2109.2,2109.0,0.0011]
[1773381052141,2.25674005,2109.2,2108.7,0.0011]
[1773381052442,1.09788439,2109.1,2108.7,0.0011]
[1773381053158,1.09788439,2109.1,2108.7,0.04967496]
[1773381053363,1.09788439,2109.1,2108.8,2.027]
[1773381053942,2.28328031,2109.0,2108.8,2.027]
[1773381054254,1.09788439,2108.9,2108.8,2.027]
[1773381054460,1.09788439,2108.9,2108.7,2.0281]
[1773381054962,2.28326798,2109.1,2108.7,3.26217128]
[1773381055360,2.28326798,2109.1,2108.7,2.07661018]
[1773381055566,2.28326798,2109.1,2108.7,3.26216695]
[1773381056066,2.28326798,2109.1,2108.7,2.07661018]
[1773381057340,1.09788439,2109.1,2108.7,3.26213739]
[1773381057663,2.28323921,2109.1,2108.7,2.07661018]
[1773381057850,1.09788439,2109.0,2108.7,2.0281]
[1773381059673,2.28329276,2109.0,2108.7,2.0281]
[1773381059974,1.09788439,2108.9,2108.7,2.0281]
[1773381060765,1.09788439,2108.9,2108.7,0.0011]
[1773381061063,1.09788439,2108.9,2108.7,2.0281]
[1773381061644,1.09733439,2108.7,2108.5,1.97492165]
[1773381063855,1.09733439,2108.6,2108.5,1.97492165]
[1773381064778,1.09733439,2109.0,2108.5,3.16056311]
[1773381065091,1.09733439,2109.0,2108.6,0.04823577]
[1773381065380,2.28367599,2109.1,2108.6,0.04823577]
[1773381065757,2.28367599,2109.1,2108.6,1.23384494]
[1773381066673,2.28367599,2109.1,2108.6,0.04823577]
[1773381067064,1.1863416,2109.1,2108.6,0.04823577]
[1773381067259,1.09733439,2109.0,2108.6,0.04823577]
[1773381067646,1.09733439,2109.0,2108.5,1.97492165]
[1773381067847,1.09733439,2108.8,2108.5,1.97492165]
[1773381069852,2.28289895,2108.7,2108.5,1.97492165]
[1773381070360,2.28277156,2109.0,2108.5,3.16059779]
[1773381070560,2.28277156,2109.0,2108.5,3.20736489]
[1773381070760,1.09733439,2108.9,2108.5,3.20736489]
[1773381071149,1.09733439,2108.9,2108.5,3.16059779]
[1773381072702,1.09733439,2108.8,2108.5,1.97492165]
[1773381073198,1.18542805,2109.0,2108.6,0.04619103]
[1773381073404,1.09733439,2109.0,2108.6,0.04619103]
[1773381073703,1.09733439,2109.0,2108.5,3.16057607]
[1773381074085,1.09733439,2109.0,2108.5,1.97492165]
[1773381075652,1.18545213,2108.9,2108.5,1.97492165]
[1773381075810,1.09733439,2108.8,2108.5,1.97492165]
[1773381076182,1.09733439,2108.8,2108.7,0.0011]
[1773381077222,1.09733439,2109.0,2108.7,0.0011]
[1773381078107,1.09733439,2108.9,2108.7,0.0011]
[1773381084014,0.001,2109.3,2108.8,0.06458308]
[1773381084215,0.001,2109.5,2109.0,0.07703888]
[1773381084398,0.001,2109.5,2109.2,0.07703888]
[1773381084915,1.18612214,2109.5,2109.2,0.07703888]
[1773381085118,0.001,2109.5,2109.2,0.07703888]
[1773381085795,0.002,2109.5,2109.2,0.07703888]
[1773381086308,0.001,2109.4,2109.1,2.029]
[1773381087201,0.001,2109.4,2109.2,0.07365213]
[1773381087721,0.001,2109.4,2109.1,2.029]
[1773381088029,0.001,2109.4,2109.1,2.10265213]
[1773381089026,0.001,2109.2,2109.1,2.10265213]
[1773381089399,0.001,2109.2,2109.1,3.28799184]
[1773381089727,0.001,2109.4,2109.1,3.28799184]
[1773381090432,0.001,2109.4,2109.1,2.10265213]
[1773381090725,0.001,2109.4,2109.1,3.28797822]
[1773381091327,0.001,2109.4,2109.1,2.10265213]
[1773381091509,0.001,2109.4,2109.1,3.28798694]
[1773381093002,0.001,2109.4,2109.1,2.10265213]
[1773381094906,0.001,2109.4,2109.1,3.28798578]
[1773381095437,0.001,2109.4,2109.2,0.06444906]
[1773381096829,1.09620442,2109.5,2109.2,0.06444906]
[1773381097038,0.001,2109.4,2109.2,0.06444906]
[1773381098236,2.28132816,2109.5,2109.2,0.06444906]
[1773381098828,0.99918612,2109.5,2109.2,0.06444906]
[1773381099138,2.28015086,2109.8,2109.3,0.15699902]
[1773381099433,1.09520442,2109.8,2109.3,0.15699902]
[1773381101146,1.09520442,2109.6,2109.3,0.15699902]
[1773381101312,1.09520442,2109.6,2109.3,0.0011]
[1773381101709,1.09520442,2109.6,2109.3,0.15773668]
[1773381103156,2.2802725,2109.6,2109.3,0.0011]
[1773381104549,1.09520442,2109.6,2109.3,0.0011]
[1773381105014,1.09520442,2109.6,2109.3,0.04850909]
[1773381105419,1.09520442,2109.6,2109.3,1.38637912]
[1773381110367,1.02769833,2109.7,2109.3,1.38637912]
[1773381110565,1.02769833,2110.0,2109.6,0.14748821]
[1773381110927,1.02769833,2110.0,2109.7,2.03]
[1773381111267,1.02769833,2110.0,2109.7,2.17748821]
[1773381113138,1.18481643,2110.1,2109.8,0.14415193]
[1773381113539,2.21345917,2110.2,2109.8,0.14415193]
[1773381115457,1.02869833,2110.2,2109.8,0.14415193]
[1773381115690,2.21343546,2110.2,2109.8,0.14415193]
[1773381116051,0.001,2109.9,2109.8,0.14415193]
[1773381116442,0.001,2110.2,2109.9,0.14459934]
[1773381116972,1.1857366,2110.2,2109.9,0.14459934]
[1773381118650,2.21343493,2110.2,2109.9,0.14459934]
[1773381119356,2.21343493,2110.2,2109.8,1.18494262]
[1773381119569,1.02769833,2110.1,2109.8,1.18494262]
[1773381119976,1.02769833,2110.1,2109.8,1.3305239]
[1773381120171,1.02769833,2110.1,2109.7,4.06184382]
[1773381120567,1.02769833,2109.9,2109.5,0.0011]
[1773381121386,1.02769833,2109.9,2109.5,1.332434]
[1773381121589,1.18483412,2110.0,2109.6,0.14621925]
[1773381121748,1.18576511,2110.2,2109.7,2.17321925]
[1773381121951,1.02769833,2110.1,2109.8,0.14621925]
[1773381122882,1.02769833,2110.1,2109.8,1.37853649]
[1773381123256,1.18572379,2110.2,2109.9,0.14682871]
[1773381123687,2.21342212,2110.2,2109.9,0.14682871]
[1773381124165,2.21342212,2110.2,2109.8,0.04739785]
[1773381124654,2.21342212,2110.2,2109.8,1.37945479]
[1773381124983,2.21342212,2110.2,2109.8,0.19453021]
[1773381125163,2.2134217,2110.2,2109.8,1.3794691]
[1773381125687,1.02869833,2110.2,2109.8,1.3794691]
[1773381126553,2.21342686,2110.2,2109.8,1.3794691]
[1773381126752,1.02869833,2110.2,2109.8,1.3794691]
[1773381127283,2.21342035,2110.2,2109.8,1.3794691]
[1773381128483,1.02869833,2110.2,2109.8,1.3794691]
[1773381128667,0.001,2110.2,2109.9,1.3331625]
[1773381128870,0.001,2110.2,2110.0,0.14830876]
[1773381129267,0.001,2110.2,2110.0,0.14940876]
[1773381129585,0.001,2110.2,2110.0,0.0011]
[1773381129786,1.02869833,2110.2,2110.0,0.0011]
[1773381133394,0.001,2110.2,2110.0,0.15079259]
[1773381133705,2.21342531,2110.2,2110.0,0.0011]
[1773381133903,1.02769833,2110.1,2110.0,0.0011]
[1773381134065,1.02769833,2110.1,2109.8,0.0011]
[1773381134678,1.02769833,2110.1,2109.8,1.18604167]
[1773381135396,1.18572698,2110.2,2109.9,0.15001105]
[1773381135397,0.001,2110.2,2109.9,0.15001105]
[1773381135896,2.2128809,2110.2,2109.8,1.38345057]
[1773381136097,1.18573257,2110.2,2109.8,1.38345057]
[1773381136296,1.02714833,2110.1,2109.8,1.38345057]
[1773381136999,1.02714833,2110.1,2109.8,1.18604167]
[1773381137795,2.21193366,2110.1,2109.8,0.0011]
[1773381138494,1.02714833,2110.1,2109.8,0.0011]
[1773381138810,1.02714833,2110.0,2109.8,0.0011]
[1773381140298,0.001,2110.2,2109.9,0.13451079]
[1773381141002,0.001,2110.2,2110.1,0.13414709]
[1773381141692,0.001,2110.5,2110.1,0.13414709]
[1773381142088,0.001,2110.5,2110.3,0.13379848]
[1773381142295,0.001,2110.5,2110.4,2.023]
[1773381142691,1.11402049,2110.7,2110.4,2.023]
[1773381143003,0.001,2110.7,2110.4,2.82133505]
[1773381144106,0.001,2110.7,2110.5,1.18455342]
[1773381145478,0.31985958,2111.1,2110.6,0.79833505]
[1773381145806,1.10080153,2111.0,2110.5,1.18455342]
[1773381146173,1.10080153,2111.0,2110.6,0.79833505]
[1773381146378,0.31985958,2111.1,2110.6,0.79833505]
[1773381148099,0.31985958,2111.1,2110.7,1.18444118]
[1773381148282,1.50407672,2111.1,2110.7,1.18444118]
[1773381148489,0.31985958,2111.1,2110.7,1.18444118]
[1773381150883,1.42066111,2111.1,2110.7,1.18444118]
[1773381151085,2.60487925,2111.1,2110.7,1.18444118]
[1773381151501,2.60487925,2111.1,2110.6,1.18446081]
[1773381151502,1.10080153,2111.0,2110.6,1.18446081]
[1773381153503,1.10080153,2110.9,2110.5,1.18452554]
[1773381154928,1.10180153,2110.9,2110.5,1.18452554]
[1773381157596,2.2861531,2110.9,2110.5,1.18452554]
[1773381158391,1.10080153,2110.8,2110.4,4.00591153]
[1773381161144,1.18535157,2110.9,2110.6,0.79833505]
[1773381161145,0.001,2110.9,2110.6,0.79833505]
[1773381161322,0.001,2110.9,2110.4,3.20757648]
[1773381161640,0.001,2110.9,2110.7,1.18444118]
[1773381162052,0.001,2110.9,2110.6,1.98279271]
[1773381163743,0.31985958,2111.1,2110.8,0.79833505]
[1773381163937,2.30390218,2111.2,2110.9,2.025]
[1773381164335,1.11974092,2111.1,2110.9,2.025]
[1773381165777,1.11974092,2111.1,2110.9,3.2093128]
[1773381166050,1.11974092,2111.1,2110.9,2.025]
[1773381166347,1.11974092,2111.1,2110.9,3.20932182]
[1773381166545,1.11974092,2111.2,2110.9,3.20932182]
[1773381167020,1.11974092,2111.3,2110.9,3.20932182]
[1773381169221,1.11974092,2111.3,2110.7,0.0011]
[1773381169222,1.16711647,2111.2,2110.7,0.0011]
[1773381169439,1.16711647,2111.2,2110.8,2.026]
[1773381170048,1.18421675,2111.1,2110.8,2.026]
[1773381170255,2.30395767,2111.1,2110.8,2.026]
[1773381170459,1.11974092,2111.1,2110.8,2.026]
[1773381170835,1.14526701,2111.3,2110.9,0.07513864]
[1773381171034,1.14526701,2111.3,2110.9,5.58308564]
[1773381171035,1.14526701,2111.2,2110.9,5.58308564]
[1773381171242,1.19264256,2111.2,2110.9,5.58308564]
[1773381172146,1.14526701,2111.1,2110.9,5.58308564]
[1773381172765,1.19264256,2111.2,2110.9,6.83847959]
[1773381173065,1.19264256,2111.2,2110.9,5.58308564]
[1773381173066,1.14526701,2111.1,2110.9,5.58308564]
[1773381173877,1.14526701,2111.1,2110.6,4.73787334]
[1773381174157,1.14526701,2110.9,2110.7,3.20949584]
[1773381176446,2.32959853,2110.9,2110.7,3.20949584]
[1773381177465,1.14526701,2110.9,2110.7,3.20949584]
[1773381178049,1.14526701,2110.9,2110.5,0.0011]
[1773381178359,2.32965207,2110.8,2110.6,2.026]
[1773381179035,1.14526701,2110.8,2110.7,2.027]
[1773381179238,2.32960939,2110.9,2110.7,2.027]
[1773381179467,2.32960939,2110.9,2110.7,3.21249584]
[1773381179667,1.14526701,2110.9,2110.7,3.21249584]
[1773381180242,2.32965207,2110.8,2110.7,3.21249584]
[1773381180478,1.14526701,2110.8,2110.7,3.21249584]
[1773381180812,1.14626701,2111.0,2110.7,3.21249584]
[1773381180978,2.32939657,2111.3,2110.9,0.77715484]
[1773381181143,1.14526701,2111.3,2110.9,0.77715484]
[1773381181343,2.32937944,2111.3,2111.0,1.18549584]
[1773381181761,1.14526701,2111.3,2111.0,1.18549584]
[1773381182159,2.32937274,2111.3,2111.0,1.18549584]
[1773381182552,1.14526701,2111.2,2111.0,1.18549584]
[1773381183153,1.18410573,2111.3,2110.6,0.0011]
[1773381183154,1.14526701,2111.0,2110.6,0.0011]
[1773381183476,1.14526701,2111.0,2110.7,3.06493493]
[1773381183965,1.14526701,2111.0,2110.8,0.0473754]
[1773381185201,2.32955131,2111.0,2110.7,3.06493493]
[1773381185700,2.32955131,2111.0,2110.7,3.11231257]
[1773381185900,1.14526701,2111.0,2110.7,3.11231257]
[1773381187089,1.14526701,2111.0,2110.8,0.0473754]
[1773381187390,1.14526701,2111.0,2110.7,3.11231257]
[1773381187884,1.14526701,2111.2,2110.7,3.25480166]
[1773381188067,1.14526701,2111.2,2110.8,2.025]
[1773381188068,1.14526701,2111.1,2110.8,2.025]
[1773381189467,1.14526701,2111.1,2110.8,3.06693493]
[1773381189971,1.14526701,2111.1,2110.8,4.2512822]
[1773381191596,1.14526701,2111.2,2110.8,4.2512822]
[1773381191902,1.14526701,2111.2,2110.9,1.04193493]
[1773381192487,1.14526701,2111.2,2110.9,2.22625479]
[1773381192999,1.19264256,2111.1,2111.0,2.027]
[1773381193186,0.001,2110.9,2110.6,2.22751154]
[1773381193382,1.14626701,2110.9,2110.6,2.22751154]
[1773381193581,1.14626701,2110.9,2110.8,0.0011]
[1773381193770,1.14526701,2111.3,2110.9,1.04193493]
[1773381193967,2.32937229,2111.3,2111.0,1.04193493]
[1773381194203,1.14526701,2111.3,2111.0,1.04193493]
[1773381194498,1.14526701,2111.3,2111.1,2.028]
[1773381194801,1.14526701,2111.2,2111.1,2.028]
[1773381197097,1.14526701,2111.2,2110.9,1.18430714]
[1773381197269,1.14526701,2111.2,2110.8,4.73862932]
[1773381197270,1.14526701,2111.1,2111.0,2.03]
[1773381198103,1.14526701,2111.1,2110.8,0.0011]
[1773381199206,2.32948922,2111.1,2110.9,2.031]
[1773381199388,1.14526701,2111.0,2110.9,2.031]
[1773381202004,1.29032763,2110.9,2110.8,0.0011]
[1773381202182,1.29032763,2110.9,2110.8,2.0341]
[1773381206714,1.29032763,2110.9,2110.6,0.0011]
[1773381206715,1.29032763,2110.8,2110.6,0.0011]
[1773381206887,1.29032763,2110.8,2110.4,0.0011]
[1773381207815,1.29032763,2110.6,2110.4,0.0011]
[1773381208018,1.29032763,2110.6,2110.5,2.033]
[1773381209116,1.29032763,2110.7,2110.5,2.033]
[1773381211715,2.47477893,2110.7,2110.5,2.033]
[1773381212218,1.29032763,2110.6,2110.5,2.033]
[1773381214716,1.29032763,2110.9,2110.6,1.19333269]
[1773381215014,1.29032763,2111.3,2110.6,1.24071258]
[1773381215229,1.33770318,2111.2,2110.6,1.19333269]
[1773381215419,1.29032763,2111.2,2110.8,1.19333269]
[1773381215621,2.67590662,2111.6,2110.8,1.19333269]
[1773381215622,2.47441218,2111.4,2110.8,1.19333269]
[1773381215826,1.29032763,2111.3,2110.8,1.19333269]
[1773381217990,1.29032763,2111.3,2111.0,1.19333269]
[1773381218196,1.29032763,2111.3,2111.1,2.031]
[1773381219516,2.52171554,2111.5,2111.1,2.031]
[1773381219825,1.29032763,2111.4,2111.1,2.031]
[1773381220524,1.29032763,2111.4,2111.1,4.40852251]
[1773381221426,1.18389237,2111.7,2111.2,1.19333269]
[1773381221601,1.33770318,2111.6,2111.2,1.19333269]
[1773381222022,1.33770318,2111.6,2111.1,2.031]
[1773381222437,1.29032763,2111.4,2111.1,2.031]
[1773381223614,1.29032763,2111.4,2111.1,4.40853637]
[1773381223816,2.47432005,2111.5,2111.1,3.22433269]
[1773381224426,1.29032763,2111.5,2111.2,1.21775665]
[1773381224621,2.47432723,2111.5,2111.2,1.21775665]
[1773381224942,1.17125291,2111.4,2111.1,2.031]
[1773381226417,2.35535749,2111.3,2111.1,2.031]
[1773381227221,1.17125291,2111.2,2110.9,1.21110637]
[1773381227453,1.17125291,2111.2,2110.7,0.0011]
[1773381227747,1.17125291,2111.2,2110.7,1.20890738]
[1773381228245,1.17125291,2111.1,2110.7,0.0011]
[1773381228541,1.17125291,2111.1,2110.8,2.03]
[1773381228542,1.17125291,2110.9,2110.8,2.03]
[1773381230849,2.35558186,2110.9,2110.8,2.03]
[1773381231957,0.79776866,2111.2,2110.8,2.03]
[1773381231958,0.04737555,2111.2,2110.8,2.03]
[1773381232151,1.22484437,2111.1,2110.8,2.03]
[1773381233015,1.22484437,2111.0,2110.8,2.03]
[1773381236618,4.73689217,2111.1,2110.8,2.03]
[1773381236843,1.22484437,2110.9,2110.8,2.03]
[1773381237041,1.22484437,2110.9,2110.7,0.0011]
[1773381237844,1.22484437,2110.9,2110.4,0.04848438]
[1773381238029,1.22484437,2110.9,2110.4,0.0011]
[1773381238229,1.22484437,2110.9,2110.5,2.015]
[1773381239155,1.22484437,2110.7,2110.5,2.015]
[1773381240751,1.22484437,2110.7,2110.4,0.0011]
[1773381241423,2.40934166,2110.6,2110.4,0.0011]
[1773381241824,2.40934166,2110.6,2110.5,2.019]
[1773381242053,1.22484437,2110.6,2110.5,2.019]
[1773381242360,1.22484437,2110.6,2110.4,0.0011]
[1773381243225,1.18548578,2110.7,2110.1,0.0011]
[1773381243226,1.22484437,2110.4,2110.1,0.0011]
[1773381243421,1.22484437,2110.2,2109.8,0.0011]
[1773381243842,1.22484437,2110.2,2109.9,2.001]
[1773381244047,1.22484437,2110.1,2109.6,1.10126459]
[1773381244250,1.22484437,2110.1,2109.5,0.0011]
[1773381245052,1.22484437,2110.1,2109.6,1.16820155]
[1773381245357,1.22484437,2110.1,2109.5,0.0011]
[1773381245557,1.22484437,2109.9,2109.5,0.0011]
[1773381245757,1.22484437,2109.9,2109.6,2.006]
[1773381247656,1.22484437,2109.8,2109.6,2.006]
[1773381248397,1.22484437,2110.3,2109.7,1.15561784]
[1773381248556,1.22484437,2110.3,2109.6,3.238456]
[1773381248557,1.22484437,2110.3,2109.8,1.16916152]
[1773381251961,2.40956619,2110.2,2109.8,1.16916152]
[1773381252181,2.40956619,2110.2,2109.5,0.0011]
[1773381252182,1.22484437,2110.1,2109.5,0.0011]
[1773381253966,1.22484437,2110.1,2109.6,2.016]
[1773381254562,1.22484437,2109.9,2109.6,2.016]
[1773381254936,2.40966609,2110.1,2109.7,1.1502725]
[1773381255141,1.18482172,2110.1,2109.7,1.1502725]
[1773381255365,2.40966609,2110.1,2109.7,1.1502725]
[1773381255546,2.45704164,2110.1,2109.7,1.1513725]
[1773381256074,0.001,2109.9,2109.7,1.1513725]
[1773381256647,0.001,2109.9,2109.7,2.33637218]
[1773381257371,0.001,2109.9,2109.7,1.1513725]
[1773381267676,1.21191992,2109.9,2109.7,0.0485001]
[1773381268458,0.001,2109.9,2109.7,0.0485001]
[1773381268658,0.001,2109.9,2109.7,1.10422265]
[1773381269079,0.001,2109.9,2109.8,1.05572255]
[1773381269375,2.39552947,2110.4,2109.8,1.05472255]
[1773381269576,2.39546543,2110.6,2110.0,1.05156157]
[1773381269881,1.25829547,2110.5,2110.0,1.05156157]
[1773381271476,2.39552947,2110.4,2110.0,2.23639331]
[1773381271678,1.25829547,2110.3,2109.8,2.230248]
[1773381271882,1.25829547,2110.3,2109.9,1.04532607]
[1773381272070,0.04737555,2110.3,2109.9,1.04532607]
[1773381274878,1.18472182,2110.2,2109.9,1.04532607]
[1773381275077,1.18472182,2110.2,2109.7,1.18605763]
[1773381275078,1.21091992,2110.1,2109.7,1.18605763]
[1773381275266,1.21091992,2110.1,2109.7,2.21901946]
[1773381275875,1.18472182,2110.2,2109.8,1.03296183]
[1773381276073,1.18463275,2110.4,2110.0,1.03296183]
[1773381276455,2.39548397,2110.5,2110.0,1.03296183]
[1773381276974,2.44285952,2110.5,2110.0,1.03296183]
[1773381277686,2.44285952,2110.5,2110.0,2.21775812]
[1773381277884,2.44285952,2110.5,2110.0,2.26515148]
[1773381279049,1.2319396,2110.5,2110.0,1.23218965]
[1773381279266,2.3954193,2110.6,2110.1,1.02385783]
[1773381279452,1.21091992,2110.5,2110.2,2.025]
[1773381279675,1.25829547,2110.5,2110.2,2.025]
[1773381279985,2.44289757,2110.5,2110.2,2.025]
[1773381280886,1.21091992,2110.6,2110.2,4.22753983]
[1773381282078,2.39542185,2110.6,2110.2,4.22753983]
[1773381282278,1.21091992,2110.5,2110.2,4.22753983]
[1773381282787,1.21091992,2110.5,2110.2,2.025]
[1773381283366,1.21091992,2110.5,2110.2,3.20971671]
[1773381283566,2.44377966,2110.7,2110.3,1.00799074]
[1773381284197,1.15619659,2110.6,2110.3,1.00799074]
[1773381284564,1.15619659,2110.6,2110.3,2.1926563]
[1773381284876,1.15619659,2110.6,2110.2,4.22269201]
[1773381285076,1.15619659,2110.6,2110.2,2.99062488]
[1773381285293,1.23285974,2110.7,2110.2,2.025]
[1773381285294,1.20357214,2110.5,2110.2,2.025]
[1773381286170,1.15619659,2110.4,2110.2,2.025]
[1773381289494,2.3408116,2110.4,2110.2,2.025]
[1773381289985,1.15619659,2110.4,2110.2,2.025]
[1773381290387,2.34083722,2110.4,2110.2,2.025]
[1773381290773,1.17465085,2110.3,2110.2,2.025]
[1773381292000,1.17465085,2110.3,2109.9,0.0011]
[1773381293097,1.17465085,2110.2,2110.0,2.026]
[1773381293293,0.001,2110.2,2110.1,0.98666865]
[1773381293463,0.001,2110.2,2110.1,0.98776865]
[1773381295200,0.001,2110.7,2110.2,0.93373932]
[1773381295374,1.17565085,2110.7,2110.3,0.98112594]
[1773381297385,1.17565085,2110.7,2110.3,2.1657838]
[1773381298090,0.001,2110.7,2110.4,0.92826531]
[1773381298610,1.17465085,2110.6,2110.3,0.04738662]
[1773381298779,1.17465085,2110.4,2110.1,0.0011]
[1773381299578,1.17465085,2110.2,2110.1,0.0011]
[1773381300396,1.17465085,2110.2,2109.7,0.0011]
[1773381300597,1.17465085,2109.8,2109.5,0.0011]
[1773381301683,1.17465085,2109.6,2109.5,2.0271]
[1773381303282,1.18499018,2109.8,2109.5,2.0271]
[1773381303708,2.35964103,2109.8,2109.5,2.0271]
[1773381303885,0.23911383,2110.3,2109.7,1.71457239]
[1773381303886,1.17465085,2110.3,2109.7,1.71457239]
[1773381304086,1.17465085,2110.3,2109.5,4.92675115]
[1773381304308,1.17465085,2110.3,2109.5,4.1282446]
[1773381305399,1.17465085,2110.3,2109.7,0.0011]
[1773381305714,1.17465085,2110.1,2109.7,0.0011]
[1773381307023,0.001,2110.2,2109.7,0.90922353]
[1773381307187,1.17565085,2110.2,2109.7,0.90922353]
[1773381308014,1.17565085,2110.2,2109.8,1.18494644]
[1773381308308,0.001,2110.2,2109.9,0.9028834]
[1773381310325,0.001,2110.2,2110.0,1.18483412]
[1773381310528,0.001,2110.2,2110.1,2.026]
[1773381313119,0.001,2110.2,2110.1,3.21077797]
[1773381314990,0.001,2110.2,2110.1,2.026]
[1773381316222,0.001,2110.2,2110.1,3.21077797]
[1773381317220,0.001,2110.2,2110.1,4.08923513]
[1773381319619,0.001,2110.7,2110.2,0.87277109]
[1773381320526,1.17565085,2110.7,2110.2,0.87277109]
[1773381321409,1.11344048,2110.6,2110.3,0.86635802]
[1773381321609,1.11344048,2110.6,2110.2,1.18468271]
[1773381321809,1.17266534,2110.6,2110.1,4.07712895]
[1773381322403,1.17266534,2110.6,2110.1,2.026]
[1773381322603,1.17266534,2110.6,2110.1,3.21076713]
[1773381323201,1.17266534,2110.6,2110.1,4.07156406]
[1773381324032,1.11344048,2110.5,2110.1,4.07156406]
[1773381324428,1.11344048,2110.5,2110.1,2.88679693]
[1773381324634,1.24375345,2110.6,2109.9,4.73949011]
[1773381324635,1.11344048,2110.3,2110.2,2.027]
[1773381326240,1.11344048,2110.5,2110.2,2.027]
[1773381328348,1.11344048,2110.4,2110.2,2.027]
[1773381329336,1.18459651,2110.5,2110.2,2.9384289]
[1773381329517,5.85152793,2110.6,2110.2,2.9384289]
[1773381329518,2.29797803,2110.6,2110.3,0.9114289]
[1773381330132,1.11344048,2110.5,2110.4,0.0011]
[1773381330332,1.18455342,2110.5,2110.2,2.027]
[1773381330539,1.11344048,2110.4,2110.2,2.027]
[1773381334324,1.11344048,2110.3,2109.9,0.0011]
[1773381334519,1.11344048,2110.1,2109.9,0.0011]
[1773381335648,1.11344048,2110.1,2110.0,2.027]
[1773381336241,1.11344048,2110.1,2109.9,0.0011]
[1773381336824,2.29826229,2110.1,2109.9,0.0011]
[1773381337447,2.29826229,2110.1,2110.0,2.027]
[1773381338142,2.29826229,2110.1,2109.9,0.0011]
[1773381339621,2.29826229,2110.1,2109.9,2.0281]
[1773381339816,1.11344048,2110.1,2109.9,2.0281]
[1773381340643,1.18464041,2110.4,2109.9,4.09684666]
[1773381340845,2.29808089,2110.4,2110.0,0.88388521]
[1773381341238,1.11344048,2110.3,2110.0,0.88388521]
[1773381342547,1.1846232,2110.4,2110.1,0.87992644]
[1773381342742,2.29806368,2110.4,2110.1,0.87992644]
[1773381344548,0.06022767,2110.5,2110.1,0.87992644]
[1773381344736,1.08686418,2110.5,2110.2,0.8732157]
[1773381347644,2.27142638,2110.5,2110.2,0.8732157]
[1773381347851,1.08686418,2110.5,2110.2,0.8732157]
[1773381348352,0.001,2110.5,2110.2,2.05791854]
[1773381348854,1.18555842,2110.5,2110.2,0.8732157]
[1773381349151,2.2714226,2110.5,2110.2,0.8732157]
[1773381352258,1.08686418,2110.5,2110.2,2.05788861]
[1773381352457,0.001,2110.5,2110.2,2.05788861]
[1773381352827,0.001,2110.5,2110.2,0.8732157]
[1773381353527,2.22041818,2110.7,2110.3,0.85074582]
[1773381353729,1.03592632,2110.7,2110.3,0.85074582]
[1773381353927,2.21931894,2110.8,2110.4,0.85074582]
[1773381354151,2.21931894,2110.8,2110.5,2.87674582]
[1773381355164,1.03492632,2110.7,2110.3,0.84840075]
[1773381355331,1.03492632,2110.7,2110.1,0.79925869]
[1773381355332,1.09414837,2110.7,2110.1,0.84716574]
[1773381355657,1.09414837,2110.7,2110.3,0.0011]
[1773381355952,1.03592632,2110.5,2110.3,0.0011]
[1773381356363,0.001,2110.5,2110.4,2.017]
[1773381357857,0.001,2110.5,2110.4,2.85837651]
[1773381360829,2.27856829,2110.8,2110.4,2.017]
[1773381360830,1.09414557,2110.8,2110.4,2.017]
[1773381361029,1.03492632,2110.8,2110.5,0.83440876]
[1773381361263,5.77212533,2111.0,2110.6,0.83210465]
[1773381361733,1.03492632,2110.9,2110.6,0.83210465]
[1773381362634,1.03492632,2111.0,2110.4,4.03143801]
[1773381362837,1.03492632,2110.8,2110.4,2.84685001]
[1773381363036,1.03492632,2110.8,2110.4,2.017]
[1773381363258,1.03492632,2110.6,2110.4,2.017]
[1773381364757,1.03492632,2110.7,2110.4,2.017]
[1773381365240,1.03492632,2110.7,2110.4,2.80055505]
[1773381365444,1.18437231,2110.9,2110.5,0.78355505]
[1773381365758,1.03492632,2110.9,2110.5,0.78355505]
[1773381366262,1.03492632,2110.9,2110.4,2.017]
[1773381366458,1.09414276,2110.9,2110.4,2.79830531]
[1773381366841,1.09414276,2110.9,2110.4,3.98287225]
[1773381367349,2.21931138,2110.8,2110.4,2.79830531]
[1773381367849,1.03492632,2110.8,2110.5,0.77906075]
[1773381369766,1.03492632,2110.8,2110.5,1.9636016]
[1773381369963,2.66539939,2111.1,2110.6,0.77460286]
[1773381370461,1.03492632,2111.0,2110.4,2.78938363]
[1773381370657,1.03492632,2111.0,2110.4,3.97397019]
[1773381371764,1.03492632,2111.0,2110.5,0.77018134]
[1773381371955,2.21920256,2111.0,2110.6,0.77018134]
[1773381373047,1.03492632,2110.9,2110.6,0.77018134]
[1773381373248,0.38702404,2111.1,2110.9,0.76579789]
[1773381373573,1.03492632,2111.3,2110.8,0.76579789]
[1773381375175,2.21906714,2111.3,2110.8,1.95015045]
[1773381375576,1.03492632,2111.2,2110.8,1.95015045]
[1773381376771,1.03492632,2111.2,2110.8,1.18435256]
[1773381376976,1.18410863,2111.3,2110.9,0.76829399]
[1773381377166,1.18410863,2111.3,2111.0,2.80035208]
[1773381377366,2.21903495,2111.3,2111.0,2.80035208]
[1773381378655,1.03492632,2111.2,2111.0,2.035]
[1773381378960,1.09413435,2111.2,2111.1,2.037]
[1773381379157,1.09413435,2111.2,2110.6,1.94689476]
[1773381379470,1.03492632,2111.0,2110.6,1.94689476]
[1773381380070,1.03492632,2111.0,2110.6,0.7624276]
[1773381380460,1.03492632,2111.0,2110.7,2.038]